bitfinex/quotes_ETHUSD_20250319
["timestamp","ask_amount","ask_price","bid_price","bid_amount"]
[1742426464384,3.90301,2049.7,2049.5,7.728]
[1742426464554,7.80615,2049.7,2049.5,7.728]
[1742426464879,3.90301,2049.7,2049.6,0.55]
[1742426467289,8.62319,2049.8,2049.6,0.55]
[1742426467461,3.90282,2049.8,2049.6,0.55]
[1742426467785,7.80579,2049.8,2049.6,0.55]
[1742426467990,3.90282,2049.8,2049.6,1.5754177]
[1742426470792,0.789,2050.3,2050.0,3.90226]
[1742426470970,0.789,2050.3,2050.0,3.55]
[1742426471291,3.90188,2050.3,2050.0,4.3219]
[1742426471494,3.90188,2050.3,2050.0,6.02111349]
[1742426471821,3.90187,2050.3,2050.0,6.02111349]
[1742426472293,3.90212,2050.2,2050.0,6.02111349]
[1742426474700,3.90224,2050.1,2050.0,3.0]
[1742426477071,3.90212,2050.2,2050.0,3.0]
[1742426477681,3.90187,2050.3,2050.1,0.55]
[1742426477877,3.90205,2050.2,2050.1,0.55]
[1742426478283,3.90224,2050.1,2050.0,3.55]
[1742426478909,3.90209,2050.2,2050.0,4.45616]
[1742426479205,3.90187,2050.3,2050.1,0.55]
[1742426479769,3.90166,2050.5,2050.1,0.55]
[1742426479974,3.90166,2050.5,2050.1,1.3608]
[1742426480175,3.90169,2050.4,2050.1,1.3608]
[1742426480388,3.90169,2050.4,2050.2,0.916928]
[1742426480972,3.90094,2050.8,2050.2,0.916928]
[1742426480973,4.65754,2050.8,2050.4,0.55]
[1742426481203,3.90111,2050.7,2050.4,4.3608]
[1742426481412,3.90143,2050.6,2050.4,3.55]
[1742426481707,3.90148,2050.5,2050.4,3.55]
[1742426487109,3.88148,2050.5,2050.4,3.55]
[1742426487911,3.88148,2050.5,2050.2,0.916928]
[1742426487912,3.90167,2050.4,2050.2,0.916928]
[1742426488081,3.90167,2050.4,2050.3,7.726]
[1742426490095,3.90167,2050.4,2050.3,8.68605115]
[1742426493221,3.90167,2050.4,2050.3,7.726]
[1742426497619,3.90136,2050.6,2050.4,3.0]
[1742426497808,4.71592,2050.7,2050.4,3.0]
[1742426498013,4.03962486,2050.8,2050.5,0.55]
[1742426498217,3.90091,2050.8,2050.5,0.55]
[1742426498410,4.66893,2050.9,2050.5,0.55]
[1742426498614,4.66893,2050.9,2050.5,7.45147]
[1742426498802,3.90073,2050.9,2050.6,3.0]
[1742426499005,7.8016,2050.9,2050.7,1.045147]
[1742426499312,3.90091,2050.8,2050.7,1.045147]
[1742426500425,3.90091,2050.8,2050.5,3.55]
[1742426501390,3.90091,2050.8,2050.5,7.45147]
[1742426501814,3.90091,2050.8,2050.5,3.55]
[1742426502987,7.94025486,2051.0,2050.7,0.55]
[1742426503199,7.94025486,2051.0,2050.8,3.0]
[1742426503604,3.90072,2050.9,2050.8,3.0]
[1742426507033,3.90072,2050.9,2050.7,4.724]
[1742426507034,4.67521,2050.8,2050.6,3.0]
[1742426507244,7.94072486,2050.7,2050.6,3.0]
[1742426509838,3.90167,2050.4,2050.3,7.723]
[1742426513932,3.90167,2050.4,2050.3,8.67246739]
[1742426514131,3.90115,2050.7,2050.5,0.55]
[1742426514375,3.90129,2050.6,2050.5,0.55]
[1742426514708,3.90148,2050.5,2050.4,3.0]
[1742426514909,3.90148,2050.5,2050.4,3.55]
[1742426515640,3.90148,2050.5,2050.4,3.0]
[1742426517955,3.90148,2050.5,2050.4,4.55469674]
[1742426521428,7.94074486,2050.7,2050.5,1.3591]
[1742426521429,3.90115,2050.7,2050.5,1.3591]
[1742426522452,3.90092,2050.8,2050.5,1.3591]
[1742426522839,3.90096,2050.8,2050.5,1.3591]
[1742426523053,3.90096,2050.8,2050.6,0.98154667]
[1742426523217,3.90096,2050.8,2050.7,4.723]
[1742426526350,3.90079,2050.9,2050.8,3.0]
[1742426526519,3.90072,2050.9,2050.8,3.0]
[1742426526718,3.90056,2051.0,2050.8,3.0]
[1742426526922,3.90056,2051.0,2050.9,0.7723]
[1742426527624,4.03962486,2051.1,2050.9,1.3223]
[1742426527950,3.90015,2051.2,2051.0,0.55]
[1742426528158,3.89996,2051.3,2051.0,0.55]
[1742426528159,7.93958486,2051.3,2051.0,3.55]
[1742426528350,3.89996,2051.3,2051.2,3.0]
[1742426529369,8.76800195,2051.3,2051.2,3.0]
[1742426529532,8.71928486,2051.3,2051.2,3.0]
[1742426529733,3.90015,2051.2,2051.1,7.722]
[1742426530328,4.67985,2051.2,2051.1,3.0]
[1742426530661,6.33177149,2051.2,2051.1,3.0]
[1742426530825,4.67985,2051.2,2051.1,3.0]
[1742426537636,3.90015,2051.2,2051.1,3.0]
[1742426540072,3.89982,2051.4,2051.2,3.0]
[1742426540241,3.89996,2051.3,2051.2,7.721]
[1742426540849,7.93958486,2051.3,2051.2,7.721]
[1742426541173,7.93958486,2051.3,2051.2,8.57264]
[1742426541541,4.03962486,2051.5,2051.3,3.0]
[1742426541736,7.79987,2051.4,2051.3,3.0]
[1742426543056,3.89993,2051.4,2051.3,3.0]
[1742426543474,7.93926486,2051.5,2051.3,3.0]
[1742426543879,11.83893486,2051.5,2051.3,3.0]
[1742426544171,7.93926486,2051.5,2051.3,3.0]
[1742426544379,4.03962486,2051.5,2051.4,0.55]
[1742426545777,7.93920486,2051.5,2051.4,0.55]
[1742426547754,3.89977,2051.4,2051.3,7.72]
[1742426548572,3.89977,2051.4,2051.3,3.0]
[1742426554850,3.89977,2051.4,2051.3,3.55]
[1742426555056,7.93920486,2051.5,2051.3,4.45414]
[1742426556263,3.89977,2051.4,2051.3,3.0]
[1742426557756,3.89964,2051.5,2051.3,3.0]
[1742426557962,3.89939,2051.6,2051.4,0.55]
[1742426558168,3.89939,2051.6,2051.5,7.719]
[1742426558348,3.89939,2051.6,2051.5,8.935895]
[1742426558553,7.93901486,2051.6,2051.5,8.935895]
[1742426563504,7.93901486,2051.6,2051.5,7.719]
[1742426563872,7.93901486,2051.6,2051.5,3.0]
[1742426566801,3.89939,2051.6,2051.5,3.0]
[1742426567916,3.94810709,2051.6,2051.5,3.0]
[1742426568083,3.89939,2051.6,2051.5,3.0]
[1742426571704,3.89939,2051.6,2051.5,3.7717]
[1742426572333,3.89936,2051.7,2051.5,3.7717]
[1742426572521,3.89934,2051.7,2051.5,3.7717]
[1742426572719,7.93896486,2051.7,2051.5,3.7717]
[1742426572917,7.93896486,2051.7,2051.6,0.37717]
[1742426575234,4.03962486,2051.7,2051.6,1.13947]
[1742426575439,7.93882486,2051.7,2051.6,1.13947]
[1742426576146,3.89908,2051.8,2051.6,1.68947]
[1742426576352,7.79824,2051.8,2051.7,4.717]
[1742426576509,7.79824,2051.8,2051.7,6.034817]
[1742426577166,3.89908,2051.8,2051.7,6.034817]
[1742426577336,4.03962486,2051.9,2051.8,3.0]
[1742426577539,7.93844486,2051.9,2051.8,3.0]
[1742426578275,8.69214486,2051.9,2051.8,3.0]
[1742426579666,7.93844486,2051.9,2051.8,3.7717]
[1742426579830,3.89882,2051.9,2051.8,3.7717]
[1742426580133,7.93844486,2051.9,2051.8,3.7717]
[1742426580858,7.93844486,2051.9,2051.8,3.0]
[1742426582029,3.89882,2051.9,2051.8,3.0]
[1742426582230,7.93844486,2051.9,2051.8,3.0]
[1742426583066,4.03962486,2051.9,2051.8,3.0]
[1742426583266,7.93844486,2051.9,2051.8,4.3417]
[1742426583466,7.93844486,2051.9,2051.8,5.24757]
[1742426583760,7.93844486,2051.9,2051.8,4.45587]
[1742426583964,7.93844486,2051.9,2051.8,3.55]
[1742426585071,3.89882,2051.9,2051.8,4.3417]
[1742426585460,7.93825486,2052.0,2051.9,0.55]
[1742426585662,3.89849,2052.1,2051.9,0.55]
[1742426585869,3.89816,2052.3,2051.9,0.55]
[1742426586075,3.89828,2052.2,2052.1,0.55]
[1742426586373,3.89816,2052.3,2052.1,0.55]
[1742426586374,3.89806,2052.3,2052.2,0.7735]
[1742426586753,7.93768486,2052.3,2052.2,0.7735]
[1742426586955,7.93768486,2052.3,2052.1,5.266]
[1742426588345,3.89825,2052.2,2052.1,8.266]
[1742426588542,3.89825,2052.2,2052.1,10.6476361]
[1742426589171,3.90788,2052.4,2052.1,10.6476361]
[1742426589668,0.01,2052.4,2052.3,0.55]
[1742426589874,3.90787,2052.4,2052.3,0.55]
[1742426592474,0.01,2052.4,2052.3,0.55]
[1742426592778,0.01,2052.4,2052.3,2.45845357]
[1742426592976,3.90787,2052.4,2052.3,2.45845357]
[1742426594678,0.01,2052.4,2052.3,11.51845357]
[1742426598082,3.90787,2052.4,2052.3,11.51845357]
[1742426598280,3.90787,2052.4,2052.3,9.61]
[1742426599678,0.01,2052.4,2052.3,9.61]
[1742426600581,3.90787,2052.4,2052.3,9.61]
[1742426604680,7.94749486,2052.4,2052.3,9.06]
[1742426604876,7.94749486,2052.4,2052.3,6.06]
[1742426605075,7.94749486,2052.4,2052.3,9.06]
[1742426605986,7.94749486,2052.4,2052.3,3.0]
[1742426609989,3.89806,2052.3,2052.2,5.262]
[1742426614773,3.89806,2052.3,2052.2,4.712]
[1742426615163,5.55207649,2052.3,2052.2,4.712]
[1742426615362,3.89844,2052.1,2052.0,0.55]
[1742426615594,3.89863,2052.0,2051.8,25.779]
[1742426615791,7.93844486,2051.9,2051.8,25.779]
[1742426615996,7.93844486,2051.9,2051.8,30.491]
[1742426616214,7.93844486,2051.9,2051.8,4.712]
[1742426617989,3.89939,2051.6,2051.5,4.3217]
[1742426618188,3.89939,2051.6,2051.5,3.55]
[1742426618505,3.89939,2051.6,2051.5,8.262]
[1742426619615,3.89939,2051.6,2051.5,5.262]
[1742426620397,3.89977,2051.4,2051.3,3.0]
[1742426620716,3.90024,2051.2,2051.0,0.7837]
[1742426620871,7.80055,2051.2,2051.1,4.712]
[1742426621281,3.90024,2051.2,2051.1,5.262]
[1742426621491,3.90024,2051.2,2051.1,4.712]
[1742426622004,3.90024,2051.2,2051.1,5.262]
[1742426623510,7.93959486,2051.3,2051.1,5.262]
[1742426623715,7.93959486,2051.3,2051.2,0.55]
[1742426624602,3.90053,2051.0,2050.9,6.06]
[1742426624780,3.90053,2051.0,2050.8,4.712]
[1742426624781,3.90072,2050.9,2050.8,4.712]
[1742426626002,3.90056,2051.0,2050.8,5.262]
[1742426626208,3.90034,2051.1,2050.9,0.55]
[1742426626419,3.90053,2051.0,2050.9,1.766309]
[1742426626622,3.90053,2051.0,2050.9,0.55]
[1742426627507,3.90047,2051.1,2050.9,0.55]
[1742426628000,3.90045,2051.1,2050.9,0.55]
[1742426628194,3.90053,2051.0,2050.9,0.55]
[1742426628506,3.90039,2051.1,2050.9,0.55]
[1742426628707,7.80089,2051.1,2050.9,1.766308]
[1742426628894,3.90039,2051.1,2050.9,1.766308]
[1742426629294,7.93994486,2051.2,2050.9,2.528208]
[1742426629681,7.93989486,2051.2,2050.9,2.528208]
[1742426629906,7.93988486,2051.2,2050.9,2.528208]
[1742426630216,4.7125,2051.4,2051.1,0.55]
[1742426630507,0.8148,2051.7,2051.4,3.89977]
[1742426630733,0.8027,2052.3,2051.5,11.26611]
[1742426631007,3.89901,2051.8,2051.7,0.55]
[1742426631503,3.8992,2051.7,2051.6,4.712]
[1742426631712,3.8992,2051.7,2051.6,5.262]
[1742426633089,3.89939,2051.6,2051.5,4.712]
[1742426633291,7.93901486,2051.6,2051.5,4.712]
[1742426635181,0.8094,2051.9,2051.6,0.55]
[1742426635182,4.70831,2051.9,2051.6,0.55]
[1742426635388,3.89891,2051.9,2051.6,0.55]
[1742426635601,7.93853486,2051.9,2051.6,3.55]
[1742426636386,3.8991,2051.8,2051.6,3.55]
[1742426636603,3.8992,2051.7,2051.6,4.893655]
[1742426636773,3.8991,2051.8,2051.6,4.893655]
[1742426636977,3.8992,2051.7,2051.6,4.893655]
[1742426637191,3.8992,2051.7,2051.6,3.55]
[1742426637877,8.72342486,2051.7,2051.6,3.55]
[1742426638488,7.93882486,2051.7,2051.6,3.55]
[1742426640507,3.89939,2051.6,2051.5,4.712]
[1742426642123,3.89996,2051.3,2051.2,9.61]
[1742426642304,3.90045,2051.1,2050.9,0.8297]
[1742426642484,3.90045,2051.1,2051.0,4.711]
[1742426642683,7.94007486,2051.1,2051.0,4.711]
[1742426643902,8.74307486,2051.1,2051.0,4.711]
[1742426644713,7.94007486,2051.1,2051.0,4.711]
[1742426647014,3.90091,2050.8,2050.7,0.45388076]
[1742426647183,3.90091,2050.8,2050.7,4.711]
[1742426652226,4.66698,2051.3,2050.9,3.90064]
[1742426652416,3.90022,2051.2,2050.8,1.3214]
[1742426652613,3.90038,2051.1,2050.8,5.888964]
[1742426652787,3.90062,2051.0,2050.8,5.117564]
[1742426652991,3.90072,2050.9,2050.8,0.55]
[1742426654722,3.90091,2050.8,2050.7,4.711]
[1742426654921,3.90091,2050.8,2050.7,5.261]
[1742426655736,3.90091,2050.8,2050.7,4.711]
[1742426659348,3.90023,2051.2,2050.9,0.7968]
[1742426659505,3.90046,2051.1,2050.8,0.55]
[1742426659799,3.90055,2051.0,2050.8,0.55]
[1742426659996,3.90046,2051.1,2050.8,0.55]
[1742426660202,7.80095,2051.1,2050.8,1.545903]
[1742426660825,3.90046,2051.1,2050.8,1.545903]
[1742426661037,3.90021,2051.2,2050.8,5.446793]
[1742426661499,3.90037,2051.1,2050.8,1.545903]
[1742426662136,3.90037,2051.1,2050.8,8.446803]
[1742426662328,3.90021,2051.2,2050.9,1.0954753]
[1742426662725,3.90041,2051.1,2050.9,1.0954753]
[1742426662932,3.90041,2051.1,2050.8,3.55]
[1742426663138,3.90055,2051.0,2050.8,3.55]
[1742426664097,3.90072,2050.9,2050.8,0.55]
[1742426664298,3.90072,2050.9,2050.8,5.261]
[1742426664737,3.90072,2050.9,2050.8,4.711]
[1742426665326,7.94034486,2050.9,2050.8,4.711]
[1742426666335,3.90072,2050.9,2050.8,4.711]
[1742426666913,7.80121,2051.0,2050.8,5.4821]
[1742426667304,3.90055,2051.0,2050.8,5.4821]
[1742426669620,3.89978,2051.4,2050.9,1.3776]
[1742426669621,3.90013,2051.3,2050.9,1.3776]
[1742426669838,3.90027,2051.2,2050.9,1.3776]
[1742426670312,3.90013,2051.3,2050.9,1.3776]
[1742426670634,3.90013,2051.3,2051.1,0.55]
[1742426670822,3.90015,2051.2,2051.1,0.55]
[1742426671135,3.90015,2051.2,2051.1,5.261]
[1742426673051,4.79322486,2051.2,2050.8,4.711]
[1742426673258,7.94028486,2051.0,2050.8,4.711]
[1742426673539,3.90072,2050.9,2050.8,7.711]
[1742426673707,3.90072,2050.9,2050.8,4.711]
[1742426674143,3.90072,2050.9,2050.8,4.71]
[1742426674504,7.94028486,2051.0,2050.8,4.71]
[1742426675023,3.90072,2050.9,2050.8,4.71]
[1742426677226,3.90072,2050.9,2050.7,5.26]
[1742426677227,3.90104,2050.8,2050.7,5.26]
[1742426677550,3.90104,2050.8,2050.7,8.26]
[1742426679251,3.90104,2050.8,2050.7,7.71]
[1742426682057,3.90104,2050.8,2050.7,4.71]
[1742426682058,7.94066486,2050.8,2050.7,4.71]
[1742426683953,3.90132,2050.6,2050.4,6.06]
[1742426684129,3.90148,2050.5,2050.4,9.61]
[1742426684329,3.90148,2050.5,2050.4,14.32]
[1742426685054,3.90132,2050.6,2050.4,14.32]
[1742426685234,7.80276,2050.6,2050.4,14.32]
[1742426686852,3.90148,2050.5,2050.4,14.32]
[1742426687752,3.90148,2050.5,2050.4,9.61]
[1742426687940,7.94071486,2050.8,2050.4,18.46575691]
[1742426688144,3.90115,2050.7,2050.4,8.26]
[1742426688458,4.03962486,2050.8,2050.5,0.55]
[1742426688622,3.90091,2050.9,2050.5,4.45131]
[1742426688828,3.90088,2050.9,2050.7,0.55]
[1742426689027,3.90091,2050.8,2050.7,0.55]
[1742426689251,3.90091,2050.8,2050.7,5.26]
[1742426692173,0.8327,2051.1,2050.7,5.786]
[1742426692356,9.89017,2051.2,2050.9,0.55]
[1742426693167,3.90053,2051.0,2050.9,0.55]
[1742426694079,3.90072,2050.9,2050.8,3.0]
[1742426694576,3.90091,2050.8,2050.7,8.26]
[1742426698478,3.90091,2050.8,2050.7,7.71]
[1742426700453,7.94053486,2050.8,2050.2,32.97267853]
[1742426700658,3.90142,2050.6,2050.3,4.709]
[1742426700888,3.90183,2050.4,2050.2,26.5441]
[1742426701039,3.90183,2050.4,2050.3,7.709]
[1742426702489,3.9015,2050.5,2050.3,7.709]
[1742426702660,7.80314,2050.5,2050.3,7.709]
[1742426702991,3.90167,2050.4,2050.3,7.709]
[1742426703679,3.90167,2050.4,2050.3,3.0]
[1742426703879,3.90167,2050.4,2050.3,7.709]
[1742426705879,3.90154,2050.5,2050.3,7.709]
[1742426706075,0.7832,2050.7,2050.4,0.55]
[1742426706275,3.90119,2050.7,2050.4,3.55]
[1742426707049,3.90093,2050.8,2050.5,0.7505]
[1742426707285,3.90093,2050.8,2050.5,4.65198]
[1742426707579,3.90093,2050.8,2050.5,2.555418]
[1742426708460,7.802,2050.8,2050.5,0.7505]
[1742426708850,3.90093,2050.8,2050.5,0.7505]
[1742426709781,3.90073,2050.9,2050.5,4.65198]
[1742426710183,7.80161,2050.9,2050.5,4.65198]
[1742426710398,3.90073,2050.9,2050.5,0.7505]
[1742426710565,3.90073,2050.9,2050.5,2.55544]
[1742426710897,3.90093,2050.8,2050.5,2.55544]
[1742426712895,3.90073,2050.9,2050.5,6.45691]
[1742426713098,7.80161,2050.9,2050.5,2.55544]
[1742426713818,3.90098,2050.8,2050.5,2.55544]
[1742426713971,3.90139,2050.6,2050.4,0.55]
[1742426714175,3.90139,2050.6,2050.5,4.708]
[1742426714386,3.90142,2050.6,2050.5,4.708]
[1742426715319,7.80235,2050.7,2050.5,4.708]
[1742426716519,3.90129,2050.6,2050.5,4.708]
[1742426716916,7.94091486,2050.6,2050.5,4.708]
[1742426718925,3.9011,2050.7,2050.5,4.708]
[1742426719127,7.94036486,2050.9,2050.5,4.708]
[1742426719632,3.90098,2050.8,2050.5,4.708]
[1742426719832,3.90098,2050.8,2050.5,6.339969]
[1742426720626,7.94034486,2050.9,2050.5,10.241289]
[1742426720627,4.03962486,2050.9,2050.5,10.241289]
[1742426720781,7.94047486,2050.9,2050.5,10.241289]
[1742426720997,3.90106,2050.8,2050.5,4.708]
[1742426721593,3.90106,2050.8,2050.6,3.0]
[1742426721797,4.03962486,2051.1,2050.7,0.8082]
[1742426722039,3.90072,2050.9,2050.6,3.0]
[1742426722399,3.90072,2050.9,2050.8,0.054533]
[1742426725350,3.90072,2050.9,2050.6,3.0]
[1742426726242,3.90072,2050.9,2050.6,6.90128]
[1742426726414,3.90057,2051.0,2050.6,8.68481858]
[1742426726619,7.93998486,2051.1,2050.7,4.70146]
[1742426727314,7.93998486,2051.1,2050.7,0.8004]
[1742426727642,7.93998486,2051.1,2050.8,0.55]
[1742426727643,3.90036,2051.1,2050.8,0.55]
[1742426727846,0.7544,2051.4,2051.0,4.70088]
[1742426728050,3.89989,2051.4,2051.1,0.55]
[1742426729325,3.89964,2051.5,2051.1,7.4502]
[1742426729525,3.89949,2051.6,2051.3,0.7779]
[1742426729766,3.89949,2051.6,2051.3,5.4849]
[1742426730525,0.7921,2051.8,2051.3,5.4849]
[1742426730526,0.7921,2051.8,2051.5,0.55]
[1742426730725,4.03962486,2052.0,2051.5,0.55]
[1742426730726,3.8989,2051.9,2051.5,4.4494]
[1742426731045,8.70894486,2052.0,2051.7,0.55]
[1742426731247,0.7706,2052.2,2051.7,6.0227]
[1742426731547,3.89854,2052.1,2051.7,9.92182]
[1742426732242,7.79715,2052.1,2051.7,9.92182]
[1742426732449,3.89882,2051.9,2051.8,1.4656037]
[1742426732762,3.89901,2051.8,2051.7,7.706]
[1742426733257,3.89882,2051.9,2051.7,7.706]
[1742426734147,3.8985,2052.1,2051.7,11.60516]
[1742426734466,7.79712,2052.1,2051.8,0.55]
[1742426734641,3.89869,2052.0,2051.8,0.55]
[1742426734826,3.89869,2052.0,2051.9,0.8256]
[1742426735033,3.89869,2052.0,2051.8,0.55]
[1742426735659,7.93831486,2052.0,2051.8,0.55]
[1742426735867,3.89882,2051.9,2051.8,0.55]
[1742426736376,0.01,2052.4,2051.9,0.7751]
[1742426736528,0.01,2052.4,2052.3,12.26278486]
[1742426736733,0.01,2052.4,2052.3,18.98816]
[1742426736942,0.01,2052.4,2052.3,15.0901]
[1742426737145,0.01,2052.4,2052.3,10.3851]
[1742426737348,0.01,2052.4,2052.3,18.98816]
[1742426737556,0.01,2052.4,2052.3,21.58063667]
[1742426738338,0.01,2052.4,2052.3,21.9395528]
[1742426738764,0.01,2052.4,2052.3,21.58063667]
[1742426739262,0.01,2052.4,2052.3,17.68257667]
[1742426740029,0.01,2052.4,2052.3,12.97757667]
[1742426740235,0.01,2052.4,2052.3,6.91757667]
[1742426740434,0.01,2052.4,2052.3,8.254]
[1742426740660,0.01,2052.4,2052.3,7.704]
[1742426740864,3.90797,2052.4,2052.3,4.704]
[1742426741074,0.01,2052.4,2052.3,4.704]
[1742426741436,3.90787,2052.4,2052.3,4.704]
[1742426743144,3.89825,2052.2,2052.1,4.703]
[1742426750683,3.89863,2052.1,2051.9,0.55]
[1742426750985,3.89863,2052.0,2051.8,25.786]
[1742426751156,3.89863,2052.0,2051.9,4.703]
[1742426752462,3.89863,2052.1,2051.9,4.703]
[1742426753574,3.89859,2052.1,2051.9,4.703]
[1742426754180,3.89863,2052.0,2051.9,4.703]
[1742426754587,7.79782,2051.9,2051.7,3.97647173]
[1742426754795,7.79782,2051.9,2051.6,0.834917]
[1742426754796,3.89883,2051.9,2051.8,4.703]
[1742426755979,4.69117,2052.0,2051.5,25.777]
[1742426756179,3.89936,2051.7,2051.6,4.703]
[1742426757193,3.89996,2051.3,2051.0,0.36830258]
[1742426757365,7.80009,2051.3,2051.1,4.703]
[1742426758000,3.90015,2051.2,2051.1,4.703]
[1742426758164,3.90015,2051.2,2051.1,5.641435]
[1742426759505,3.90044,2051.1,2050.9,0.55]
[1742426759663,3.90044,2051.1,2051.0,5.253]
[1742426760393,4.6929,2051.2,2051.0,5.253]
[1742426760599,3.9002,2051.2,2051.0,0.55]
[1742426760891,3.9002,2051.2,2051.1,4.703]
[1742426761094,4.69215,2051.6,2051.2,0.55]
[1742426761295,7.79947,2051.5,2051.1,9.3685]
[1742426761498,3.90015,2051.2,2051.1,5.253]
[1742426761797,3.89996,2051.3,2051.2,0.55]
[1742426763203,3.89981,2051.4,2051.2,0.55]
[1742426763410,3.89962,2051.5,2051.2,0.55]
[1742426763575,7.79937,2051.5,2051.2,0.55]
[1742426763777,7.7997,2051.4,2051.2,0.55]
[1742426764276,3.89978,2051.4,2051.2,0.55]
[1742426764894,3.89996,2051.3,2051.2,0.55]
[1742426765702,3.89978,2051.4,2051.2,0.55]
[1742426765904,3.89978,2051.4,2051.2,1.8672342]
[1742426766311,3.89996,2051.3,2051.2,0.55]
[1742426766606,3.89959,2051.5,2051.2,0.55]
[1742426766804,3.89959,2051.5,2051.2,1.3628]
[1742426767010,3.89979,2051.4,2051.2,1.3628]
[1742426767310,3.89959,2051.5,2051.2,1.3628]
[1742426767517,7.79928,2051.5,2051.2,1.3628]
[1742426767815,3.89959,2051.5,2051.2,1.3628]
[1742426768010,3.89959,2051.5,2051.2,3.1513432]
[1742426768195,3.89959,2051.5,2051.2,7.0514732]
[1742426768711,3.89935,2051.7,2051.4,0.55]
[1742426769013,3.8994,2051.6,2051.5,4.704]
[1742426771109,3.89904,2051.8,2051.5,4.704]
[1742426771283,3.89872,2052.0,2051.6,1.0754]
[1742426771484,3.8988,2052.0,2051.6,1.0754]
[1742426771684,3.899,2051.9,2051.6,1.0754]
[1742426771994,3.899,2051.9,2051.6,0.55]
[1742426771995,7.79799,2051.9,2051.6,0.55]
[1742426773133,3.89901,2051.8,2051.6,0.55]
[1742426774237,3.8992,2051.7,2051.6,0.55]
[1742426774909,3.89981,2051.4,2051.3,4.703]
[1742426775234,3.9,2051.3,2051.2,4.703]
[1742426775402,3.9,2051.3,2051.2,5.236736]
[1742426778406,3.89981,2051.4,2051.2,5.236736]
[1742426778708,3.89959,2051.5,2051.2,6.036036]
[1742426779018,3.89945,2051.6,2051.3,0.55]
[1742426779197,4.66854,2051.8,2051.4,3.89959]
[1742426779402,7.79821,2051.8,2051.5,0.55]
[1742426779623,7.79821,2051.8,2051.6,4.703]
[1742426779807,3.89904,2051.8,2051.6,5.5023]
[1742426780736,7.7982,2051.8,2051.6,5.5023]
[1742426780904,0.7695,2052.2,2051.7,7.79824]
[1742426781102,0.01,2052.4,2052.1,4.03962486]
[1742426781309,0.01,2052.4,2052.2,4.703]
[1742426781727,3.90802,2052.4,2052.2,4.703]
[1742426782237,0.01,2052.4,2052.2,4.703]
[1742426782405,7.94750486,2052.4,2052.2,4.703]
[1742426782609,3.89806,2052.3,2052.2,4.703]
[1742426782805,4.04962486,2052.4,2051.9,0.7922]
[1742426783010,4.04962486,2052.4,2051.8,9.61]
[1742426783011,3.89871,2052.0,2051.8,9.61]
[1742426783338,7.93822486,2052.1,2052.0,4.703]
[1742426783838,4.03962486,2052.1,2052.0,4.703]
[1742426784138,7.93806486,2052.1,2052.0,4.703]
[1742426784502,4.03962486,2052.1,2052.0,4.703]
[1742426785317,7.93806486,2052.1,2052.0,4.703]
[1742426785548,3.89828,2052.2,2052.0,4.703]
[1742426785718,3.89844,2052.1,2052.0,4.703]
[1742426785914,7.93806486,2052.1,2052.0,4.703]
[1742426786847,3.89828,2052.2,2052.0,4.703]
[1742426787016,0.01,2052.4,2052.1,0.55]
[1742426787216,3.90795,2052.4,2052.1,1.3278]
[1742426788134,0.01,2052.4,2052.1,1.3278]
[1742426788324,0.01,2052.4,2052.1,3.7778]
[1742426788529,0.01,2052.4,2052.2,4.840459]
[1742426788939,0.01,2052.4,2052.2,8.738599]
[1742426789450,0.01,2052.4,2052.3,7.44806]
[1742426789618,0.01,2052.4,2052.3,12.26548486]
[1742426789823,0.01,2052.4,2052.3,8.22586]
[1742426790022,0.01,2052.4,2052.3,9.97126839]
[1742426790231,0.01,2052.4,2052.3,6.07320839]
[1742426791446,0.01,2052.4,2052.3,6.44164845]
[1742426792484,0.01,2052.4,2052.3,8.255]
[1742426794075,0.01,2052.4,2052.3,12.96306]
[1742426794777,0.01,2052.4,2052.3,13.33131715]
[1742426796246,0.01,2052.4,2052.3,9.43325715]
[1742426797885,0.1040991,2054.9,2052.5,0.8309]
[1742426798178,0.8128,2054.8,2054.1,3.89462]
[1742426798380,4.03962486,2054.7,2054.2,5.046]
[1742426798546,3.89362,2054.7,2054.1,0.55]
[1742426798747,3.89427,2054.3,2053.9,3.59867861]
[1742426798949,0.8128,2054.8,2053.9,3.59867861]
[1742426798950,4.71893,2054.2,2053.9,0.55]
[1742426799190,4.03962486,2054.1,2053.4,0.8071]
[1742426799408,0.8243,2054.2,2052.2,1.290459]
[1742426799409,3.89541,2053.7,2053.2,0.36778127]
[1742426799547,4.03962486,2053.7,2053.1,0.98553327]
[1742426799746,3.89535,2053.8,2053.1,4.44641]
[1742426800000,0.56122728,2053.7,2053.1,3.55]
[1742426800159,3.89502,2053.9,2053.2,0.55]
[1742426800487,4.03962486,2053.8,2053.2,0.55]
[1742426800659,3.89535,2053.8,2053.2,0.55]
[1742426800859,3.89502,2053.9,2053.2,0.55]
[1742426801081,4.03962486,2053.4,2053.1,3.0]
[1742426801287,4.71973,2053.7,2053.0,6.1191]